bitfinex-derivatives/quotes_BTCF0:USTF0_20250814
["timestamp","ask_amount","ask_price","bid_price","bid_amount"]
[1755204657700,1.0384856,118080.0,118070.0,0.9476146]
[1755204657901,0.6793345,118080.0,118070.0,0.9476146]
[1755204658396,0.6803345,118080.0,118070.0,0.9476146]
[1755204658905,0.6793345,118080.0,118070.0,0.9476146]
[1755204659104,0.6803345,118080.0,118070.0,0.86297]
[1755204659703,0.6803345,118080.0,118070.0,0.86237]
[1755204660004,1.0384856,118080.0,118070.0,0.86237]
[1755204660203,0.6803345,118080.0,118070.0,0.86237]
[1755204660399,1.0394856,118080.0,118070.0,0.0151]
[1755204660706,1.0394856,118080.0,118050.0,1.17136]
[1755204660707,0.1472807,118060.0,118050.0,1.17136]
[1755204660902,0.8672318,118060.0,118050.0,2.1025279]
[1755204661198,0.5064318,118060.0,118050.0,2.02626547]
[1755204661398,0.8672318,118060.0,118050.0,2.1280785]
[1755204662301,0.8672318,118060.0,118050.0,2.1087285]
[1755204662506,0.8672318,118060.0,118050.0,2.1290785]
[1755204663001,0.8672318,118060.0,118050.0,1.27417303]
[1755204663204,0.52677317,118060.0,118050.0,1.2580179]
[1755204663400,0.54432967,118060.0,118050.0,2.0841379]
[1755204663596,0.54432967,118060.0,118050.0,2.12030552]
[1755204663801,0.03624897,118060.0,118050.0,2.84025662]
[1755204664007,0.01869247,118060.0,118050.0,2.84025662]
[1755204664706,0.04202247,118060.0,118050.0,2.84025662]
[1755204665896,0.05662247,118060.0,118050.0,2.48110552]
[1755204666099,0.04202247,118060.0,118050.0,2.48110552]
[1755204666310,0.01869247,118060.0,118050.0,2.48110552]
[1755204666608,0.01869247,118060.0,118050.0,2.84025662]
[1755204668111,0.01869247,118060.0,118050.0,2.48110552]
[1755204668404,0.01869247,118060.0,118050.0,2.84025662]
[1755204669304,0.04762,118070.0,118060.0,0.0151]
[1755204669504,0.0001,118080.0,118070.0,0.1190927]
[1755204669711,0.0001,118080.0,118070.0,1.6632838]
[1755204670211,0.0001,118080.0,118070.0,1.84978077]
[1755204670804,0.0001,118080.0,118070.0,1.68039677]
[1755204672716,0.0001,118080.0,118070.0,1.68139677]
[1755204672913,0.0001,118080.0,118070.0,1.68339677]
[1755204675709,0.1473657,118080.0,118070.0,1.32424567]
[1755204675907,0.1473657,118080.0,118070.0,0.94409567]
[1755204676109,0.1473657,118080.0,118070.0,0.96344567]
[1755204676312,0.1226657,118080.0,118070.0,0.96344567]
[1755204676514,0.1323557,118080.0,118070.0,0.96344567]
[1755204677518,0.1473657,118080.0,118070.0,0.94309567]
[1755204677709,0.1473657,118080.0,118070.0,0.96244567]
[1755204678816,0.1473657,118080.0,118070.0,0.94309567]
[1755204679011,0.5065168,118080.0,118070.0,0.94309567]
[1755204679818,0.5065168,118080.0,118070.0,0.96244567]
[1755204680310,0.1473657,118080.0,118070.0,0.96244567]
[1755204680926,0.1473657,118080.0,118070.0,0.96236567]
[1755204683328,0.1473657,118080.0,118070.0,0.96236567]
[1755204686029,0.1473657,118080.0,118070.0,0.13920567]
[1755204686217,0.5065168,118080.0,118070.0,0.96228567]
[1755204686417,0.5065168,118080.0,118070.0,0.94293567]
[1755204687023,0.5065168,118080.0,118070.0,0.96228567]
[1755204687930,0.1473657,118080.0,118070.0,0.96228567]
[1755204692130,0.0001,118080.0,118070.0,1.68223677]
[1755204692322,0.0847355,118080.0,118070.0,1.32143677]
[1755204693236,0.1085755,118080.0,118070.0,1.32143677]
[1755204693429,0.02394,118080.0,118070.0,0.96228567]
[1755204693738,0.03885,118080.0,118070.0,0.96228567]
[1755204694236,0.02394,118080.0,118070.0,0.96228567]
[1755204694622,0.1085751,118080.0,118070.0,0.96228567]
[1755204695030,0.02394,118080.0,118070.0,0.96228567]
[1755204695832,0.02394,118080.0,118070.0,1.32143677]
[1755204696837,0.03885,118080.0,118070.0,1.32143677]
[1755204697236,0.1234864,118080.0,118070.0,1.32143677]
[1755204697433,0.1183464,118080.0,118070.0,1.32143677]
[1755204697633,0.1332564,118080.0,118070.0,0.96228567]
[1755204697835,0.1183464,118080.0,118070.0,0.94293567]
[1755204698039,0.1490764,118080.0,118070.0,0.96228567]
[1755204699331,0.1490764,118080.0,118070.0,1.02295061]
[1755204700236,0.1490764,118080.0,118070.0,0.96228567]
[1755204700741,0.1490764,118080.0,118070.0,0.13920567]
[1755204700940,0.1490764,118080.0,118070.0,0.96192567]
[1755204703040,0.1490764,118080.0,118070.0,0.96184567]
[1755204703438,0.08207188,118080.0,118070.0,0.96184567]
[1755204703638,0.16670828,118080.0,118070.0,0.96184567]
[1755204709643,0.16670828,118080.0,118070.0,0.13920567]
[1755204709840,0.88665938,118080.0,118070.0,0.85761297]
[1755204710450,0.88665938,118080.0,118070.0,0.94225807]
[1755204710848,0.88708952,118080.0,118070.0,0.94225807]
[1755204714954,0.52793842,118080.0,118070.0,0.94225807]
[1755204715157,0.88708952,118080.0,118070.0,0.94225807]
[1755204716650,0.88708952,118080.0,118070.0,0.94197807]
[1755204719155,0.52793842,118080.0,118070.0,0.94197807]
[1755204719355,0.88708952,118080.0,118070.0,0.94197807]
[1755204720753,1.24624062,118080.0,118070.0,0.82492]
[1755204721552,1.24624062,118080.0,118070.0,0.003]
[1755204721755,1.61562462,118080.0,118070.0,0.003]
[1755204721953,0.1485625,118060.0,118050.0,1.52681182]
[1755204722259,0.88657562,118060.0,118050.0,2.28334252]
[1755204722450,0.88657562,118060.0,118050.0,2.26399252]
[1755204722851,0.90544793,118060.0,118050.0,2.28334252]
[1755204723050,0.90544793,118060.0,118050.0,2.26399252]
[1755204723252,0.54629683,118060.0,118050.0,2.26399252]
[1755204723557,0.90644793,118060.0,118050.0,2.27499252]
[1755204723852,0.90644793,118060.0,118050.0,2.29434252]
[1755204724059,0.90844793,118060.0,118050.0,2.31434252]
[1755204725652,0.54929683,118060.0,118050.0,2.31434252]
[1755204725857,0.90844793,118060.0,118050.0,2.31434252]
[1755204726760,0.53042452,118060.0,118050.0,2.31434252]
[1755204726958,0.88957562,118060.0,118050.0,2.31434252]
[1755204729658,0.88957562,118060.0,118050.0,2.22968322]
[1755204731955,0.88957562,118060.0,118050.0,1.40784322]
[1755204732163,0.90907856,118060.0,118050.0,2.04057762]
[1755204732459,0.90907836,118060.0,118050.0,2.04057762]
[1755204733265,0.90907836,118060.0,118050.0,2.04053762]
[1755204733456,1.40907836,118060.0,118050.0,2.04053762]
[1755204733652,1.40907836,118060.0,118050.0,0.86917762]
[1755204733959,1.40907836,118060.0,118030.0,0.2893964]
[1755204733960,0.1485769,118040.0,118030.0,0.2893964]
[1755204734263,0.868528,118040.0,118030.0,1.1107164]
[1755204735767,0.873528,118040.0,118030.0,1.1417164]
[1755204739563,0.9404347,118040.0,118030.0,1.1417164]
[1755204742665,0.5812836,118040.0,118030.0,1.1417164]
[1755204742970,0.9404347,118040.0,118030.0,1.1417164]
[1755204746263,0.9404347,118040.0,118030.0,0.9723741]
[1755204746564,0.95891401,118040.0,118030.0,0.8877]
[1755204746772,0.95891401,118040.0,118030.0,0.9723741]
[1755204747174,1.31806511,118040.0,118030.0,0.031]
[1755204747370,1.31806511,118040.0,118030.0,0.9363141]
[1755204747765,0.95891401,118040.0,118030.0,0.9516641]
[1755204748163,0.95891401,118040.0,118030.0,0.9710141]
[1755204748673,0.95891401,118040.0,118030.0,0.9226641]
[1755204748674,0.96491401,118040.0,118030.0,0.9226641]
[1755204748858,0.96491401,118040.0,118030.0,0.9420141]
[1755204749064,0.60576291,118040.0,118030.0,0.9226641]
[1755204749273,0.96491401,118040.0,118030.0,0.9226641]
[1755204750375,0.89800731,118040.0,118030.0,0.9226641]
[1755204752061,0.89824221,118040.0,118030.0,0.9226641]
[1755204753475,0.89824221,118040.0,118030.0,0.9420141]
[1755204755272,0.53909111,118040.0,118030.0,0.9420141]
[1755204755572,0.89824221,118040.0,118030.0,0.9420141]
[1755204756176,0.53909111,118040.0,118030.0,0.95885512]
[1755204756366,0.89824221,118040.0,118030.0,0.95885512]
[1755204758774,0.89824221,118040.0,118030.0,0.95885512]
[1755204758974,0.89824221,118040.0,118030.0,0.85483102]
[1755204759872,0.89824221,118040.0,118030.0,0.83948102]
[1755204760176,1.25739331,118040.0,118030.0,0.83948102]
[1755204760378,0.89824221,118040.0,118030.0,0.83948102]
[1755204760678,0.89824221,118040.0,118030.0,0.92415512]
[1755204761177,0.89824221,118040.0,118030.0,0.93950512]
[1755204762977,0.89824221,118040.0,118030.0,0.01884102]
[1755204763185,0.1462512,118020.0,118010.0,1.54639745]
[1755204763378,0.88491651,118020.0,118010.0,1.29233525]
[1755204763683,0.88491651,118020.0,118010.0,2.09262525]
[1755204764577,0.88591651,118020.0,118010.0,2.09262525]
[1755204766580,0.87188651,118020.0,118010.0,2.11897525]
[1755204766788,0.88791651,118020.0,118010.0,2.11897525]
[1755204766980,0.53176541,118020.0,118010.0,2.11897525]
[1755204767181,0.53176541,118020.0,118010.0,2.11197525]
[1755204767182,0.88891651,118020.0,118010.0,2.11197525]
[1755204767480,0.90091651,118020.0,118010.0,2.11297525]
[1755204773378,0.90091651,118020.0,118010.0,2.09362525]
[1755204773791,0.90091651,118020.0,118010.0,2.11297525]
[1755204780897,0.51221541,118020.0,118010.0,0.95677525]
[1755204781099,0.83934651,118020.0,118010.0,0.95677525]
[1755204781496,0.88583651,118020.0,118010.0,0.95677525]
[1755204781696,0.90159651,118020.0,118010.0,0.95677525]
[1755204789006,0.90159651,118020.0,118010.0,0.93742525]
[1755204789601,0.90159651,118020.0,118010.0,0.95677525]
[1755204790098,0.90159651,118020.0,118010.0,0.83754005]
[1755204790304,0.2316467,118000.0,117990.0,0.0999025]
[1755204790504,1.0739747,118000.0,117990.0,0.9177025]
[1755204791110,1.0739747,118000.0,117990.0,0.9370525]
[1755204791502,0.9892733,118000.0,117990.0,0.9380525]
[1755204791709,0.5554208,118000.0,117990.0,0.9380525]
[1755204792612,0.53645951,118000.0,117990.0,0.9380525]
[1755204796008,0.17565951,118000.0,117990.0,0.9380525]
[1755204796212,0.53645951,118000.0,117990.0,0.9380525]
[1755204801024,0.17565951,118000.0,117990.0,0.9380525]
[1755204801518,0.53481061,118000.0,117990.0,0.1009025]
[1755204801819,0.89561061,118000.0,117990.0,0.9374525]
[1755204802717,0.53645951,118000.0,117990.0,0.9374525]
[1755204804623,0.17565951,118000.0,117990.0,0.9374525]
[1755204804812,0.53645951,118000.0,117990.0,0.9374525]
[1755204807922,0.17565951,118000.0,117990.0,0.9374525]
[1755204808520,0.17565578,118000.0,117990.0,0.9374525]
[1755204812632,0.53645578,118000.0,117990.0,0.9374525]
[1755204812833,0.17565578,118000.0,117990.0,0.9374525]
[1755204813028,0.89560688,118000.0,117990.0,0.9374525]
[1755204815126,0.89560688,118000.0,117990.0,0.9181025]
[1755204815430,0.89560688,118000.0,117990.0,0.9029025]
[1755204815933,0.91449245,118000.0,117990.0,0.9029025]
[1755204816131,0.91449245,118000.0,117990.0,0.8182]
[1755204816332,0.91449245,118000.0,117990.0,0.9029025]
[1755204816735,0.91449245,118000.0,117990.0,0.9185925]
[1755204818334,0.91449245,118000.0,117990.0,0.9379425]
[1755204818528,0.91449245,118000.0,117990.0,0.9185925]
[1755204820237,0.91449245,118000.0,117990.0,0.9029025]
[1755204820736,0.91449245,118000.0,117990.0,0.9185925]
[1755204822634,0.91449245,118000.0,117990.0,0.83389]
[1755204822830,0.91449245,118000.0,117990.0,0.9185925]
[1755204824935,0.91449245,118000.0,117990.0,0.001]
[1755204825137,0.1493525,117990.0,117980.0,1.2566297]
[1755204825436,0.88801408,117990.0,117980.0,2.0718697]
[1755204825642,0.88801408,117990.0,117980.0,1.98716]
[1755204825843,0.88801408,117990.0,117980.0,2.0718697]
[1755204826743,0.88801408,117990.0,117980.0,2.0778697]
[1755204826948,0.89001408,117990.0,117980.0,2.0778697]
[1755204828148,0.89101408,117990.0,117980.0,2.0778697]
[1755204828336,0.89101408,117990.0,117980.0,1.99316]
[1755204828946,0.89101408,117990.0,117980.0,0.9059498]
[1755204829144,0.89101408,117990.0,117980.0,0.82124]
[1755204829545,0.89101408,117990.0,117980.0,0.9216398]
[1755204829841,0.89101408,117990.0,117980.0,0.83693]
[1755204830040,0.89101408,117990.0,117980.0,0.9409898]
[1755204831159,0.89101408,117990.0,117980.0,0.9216398]
[1755204831858,0.89101408,117990.0,117980.0,0.9059498]
[1755204832054,0.89101408,117990.0,117980.0,0.9216398]
[1755204832955,0.38251048,117990.0,117980.0,1.3009409]
[1755204833463,0.3638,117990.0,117980.0,1.3009409]
[1755204833656,0.003,117990.0,117980.0,1.3009409]
[1755204833853,0.37968557,118000.0,117980.0,1.8118055]
[1755204834164,0.01888557,118000.0,117990.0,0.8374936]
[1755204835055,0.01886028,118030.0,118010.0,0.1857108]
[1755204835056,0.37966028,118030.0,118010.0,0.1857108]
[1755204835255,0.59874945,118040.0,118030.0,0.0846715]
[1755204835466,0.59874945,118040.0,118030.0,0.1254015]
[1755204835664,0.50429835,118040.0,118030.0,0.13391654]
[1755204835857,0.51407835,118040.0,118030.0,0.1254015]
[1755204836058,0.52996835,118040.0,118030.0,0.1254015]
[1755204836263,0.52996835,118040.0,118030.0,0.04073]
[1755204836463,0.88911945,118040.0,118030.0,0.1254016]
[1755204837471,0.92570945,118040.0,118030.0,0.1254016]
[1755204838159,0.93470945,118040.0,118030.0,0.1274016]
[1755204838354,0.58155835,118040.0,118030.0,0.1284016]
[1755204838558,0.94070945,118040.0,118030.0,0.1284016]
[1755204839661,1.00895035,118040.0,118030.0,0.1284016]
[1755204840460,0.63390925,118040.0,118030.0,0.1284016]
[1755204840662,0.64979925,118040.0,118030.0,0.1284016]
[1755204840975,1.00895035,118040.0,118030.0,0.1284016]
[1755204841266,1.00895035,118040.0,118030.0,0.01883]
[1755204842163,1.00895035,118040.0,118030.0,0.003]
[1755204842370,1.00895035,118040.0,118030.0,0.8168]
[1755204842569,0.94070945,118040.0,118030.0,0.8168]
[1755204843966,0.94070945,118040.0,118030.0,0.9014718]
[1755204844274,0.94070945,118040.0,118030.0,0.9173018]
[1755204844663,0.94070945,118040.0,118030.0,0.9422018]
[1755204848374,0.94070945,118040.0,118030.0,0.9173018]
[1755204848574,0.94070945,118040.0,118030.0,0.9422018]
[1755204848777,0.58155835,118040.0,118030.0,0.9422018]
[1755204848977,0.94070945,118040.0,118030.0,0.9422018]
[1755204851178,0.95922993,118040.0,118030.0,0.9422018]
[1755204861781,0.95922993,118040.0,118030.0,0.942202]
[1755204870200,0.60007883,118040.0,118030.0,0.942202]
[1755204870390,0.95922993,118040.0,118030.0,0.942202]
[1755204872193,0.57178818,118040.0,118030.0,0.942202]
[1755204872502,0.57178818,118040.0,118030.0,1.3013531]
[1755204872503,0.05800048,118040.0,118030.0,1.3013531]
[1755204872700,0.04330048,118040.0,118030.0,1.3013531]
[1755204872904,0.03352048,118040.0,118030.0,0.942202]
[1755204873205,0.03352048,118040.0,118030.0,1.6629531]
[1755204873591,0.04262048,118040.0,118030.0,1.6629531]
[1755204873899,0.03352048,118040.0,118030.0,1.303802]
[1755204876402,0.03352048,118040.0,118030.0,1.6629531]
[1755204876598,0.03352048,118040.0,118030.0,1.6621531]
[1755204876906,0.01876462,118050.0,118030.0,1.6621531]
[1755204876907,0.7085213,118060.0,118050.0,0.0846578]
[1755204877096,0.7633213,118060.0,118050.0,0.9094978]
[1755204878203,0.7633213,118060.0,118050.0,0.9114978]
[1755204878504,0.7813213,118060.0,118050.0,0.9114978]
[1755204879899,0.7873213,118060.0,118050.0,0.9124978]
[1755204880805,0.7873213,118060.0,118050.0,0.9070678]
[1755204881906,0.4265213,118060.0,118050.0,0.9070678]
[1755204882405,0.4265213,118060.0,118050.0,0.9124978]
[1755204883698,0.4265213,118060.0,118050.0,0.9070678]
[1755204883998,0.7856724,118060.0,118050.0,0.9070678]
[1755204884198,0.7856724,118060.0,118050.0,0.81372]
[1755204884802,0.7856724,118060.0,118050.0,0.82241]
[1755204884998,0.7856724,118060.0,118050.0,0.9070678]
[1755204886302,0.7856724,118060.0,118050.0,0.003]
[1755204886509,1.1464724,118060.0,118050.0,0.813]
[1755204887004,0.7873213,118060.0,118050.0,0.8976579]
[1755204887204,1.1464724,118060.0,118050.0,0.8976579]
[1755204888106,1.1799924,118060.0,118050.0,0.9302279]
[1755204888911,1.19848049,118060.0,118050.0,0.9302279]
[1755204889510,1.19848049,118060.0,118050.0,0.9520379]
[1755204890513,1.19848049,118060.0,118050.0,0.9607279]
[1755204891406,1.16496049,118060.0,118050.0,0.9607279]
[1755204891606,0.72115229,118060.0,118050.0,0.9661579]
[1755204891812,0.36035229,118060.0,118050.0,0.9661579]
[1755204892010,0.39387229,118060.0,118050.0,0.9661579]
[1755204892211,0.41513229,118060.0,118050.0,0.9661579]
[1755204894508,0.48442491,118060.0,118050.0,0.9661579]
[1755204894708,0.48442491,118060.0,118050.0,0.9607279]
[1755204894914,0.84357601,118060.0,118050.0,0.9302279]
[1755204895215,0.84357601,118060.0,118050.0,0.9517879]
[1755204895512,0.84357601,118060.0,118050.0,0.9604779]
[1755204896213,1.20437601,118060.0,118050.0,0.9604779]
[1755204898218,1.20437601,118060.0,118050.0,0.9604778]
[1755204898810,1.20437601,118060.0,118050.0,0.003]
[1755204899015,1.70437601,118060.0,118050.0,0.81172]
[1755204899212,1.70517601,118060.0,118050.0,0.81172]
[1755204899415,1.70517601,118060.0,118050.0,0.78672]
[1755204900320,0.2018422,118030.0,118020.0,1.17156]
[1755204900517,0.2018494,118020.0,118000.0,0.647949]
[1755204900713,0.9218077,118010.0,118000.0,0.218716]
[1755204900913,0.94029579,118010.0,118000.0,0.169386]
[1755204901108,0.94029579,118010.0,117990.0,0.24284367]
[1755204901309,0.0942638,118000.0,117990.0,0.2632785]
[1755204901513,0.6771522,118010.0,118000.0,0.1785738]
[1755204901715,0.10343355,118010.0,118000.0,0.1785738]
[1755204901926,0.46423355,118010.0,118000.0,0.5377249]
[1755204902127,0.51058355,118010.0,118000.0,0.5377249]
[1755204902329,0.54242355,118010.0,118000.0,0.5377249]
[1755204902630,0.51058355,118010.0,118000.0,0.5377249]
[1755204902831,0.51058355,118010.0,118000.0,0.1785738]
[1755204903032,0.51358355,118010.0,118000.0,0.1795738]
[1755204903527,0.003,118010.0,118000.0,0.8995249]
[1755204903726,0.003,118010.0,118000.0,0.9003249]
[1755204904128,0.003,118010.0,118000.0,1.0698129]
[1755204904327,0.01900036,118020.0,118010.0,0.1570067]
[1755204904527,0.03769572,118020.0,118010.0,0.9869267]
[1755204904728,0.16872512,118020.0,118010.0,0.9869267]
[1755204905034,0.23954512,118020.0,118010.0,0.9869267]
[1755204905232,0.23954512,118020.0,118010.0,0.9639367]
[1755204905529,0.59869622,118020.0,118010.0,0.9093065]
[1755204905927,0.96049622,118020.0,118010.0,0.9103065]
[1755204906126,0.20870512,118020.0,118010.0,0.9879265]
[1755204906428,0.24054512,118020.0,118010.0,0.9879265]
[1755204906821,0.51182976,118020.0,118010.0,1.3470776]
[1755204907026,0.15102976,118020.0,118010.0,1.3470776]
[1755204907230,0.15302976,118020.0,118010.0,1.3470776]
[1755204908222,0.15302976,118020.0,118010.0,0.9879265]
[1755204909034,0.22384976,118020.0,118010.0,0.9879265]
[1755204909234,0.02200036,118020.0,118010.0,1.3470776]
[1755204909428,0.02200036,118020.0,118010.0,0.9879265]
[1755204909631,0.02200036,118020.0,118010.0,1.3470776]
[1755204910734,0.02200036,118020.0,118010.0,1.7078776]
[1755204911035,0.02200036,118020.0,118010.0,1.3487265]
[1755204911235,0.02200036,118020.0,118010.0,1.7078776]
[1755204911630,0.02200036,118020.0,118010.0,1.3487265]
[1755204911832,0.02200036,118020.0,118010.0,1.7078776]
[1755204918442,0.02200036,118020.0,118010.0,1.8773496]
[1755204921327,0.04217946,118040.0,118030.0,0.1534238]
[1755204921536,0.04217946,118040.0,118030.0,1.6805349]
[1755204922441,0.06534946,118040.0,118030.0,1.6805349]
[1755204923237,0.06834946,118040.0,118030.0,1.6805349]
[1755204923934,0.06834946,118040.0,118030.0,1.3213838]
[1755204924134,0.06834946,118040.0,118030.0,1.6815349]
[1755204924339,0.07334946,118040.0,118030.0,1.6815349]
[1755204924840,0.05974946,118040.0,118030.0,1.6815349]
[1755204925640,0.05974946,118040.0,118030.0,1.3223838]
[1755204925845,0.05974946,118040.0,118030.0,1.6815349]
[1755204926046,0.05974946,118040.0,118030.0,1.3223838]
[1755204926242,0.05974946,118040.0,118030.0,1.6815349]
[1755204926540,0.07416946,118040.0,118030.0,1.6815349]
[1755204928437,0.008,118040.0,118030.0,2.0423349]
[1755204929937,0.03121,118040.0,118030.0,2.0423349]
[1755204930944,0.007,118040.0,118030.0,2.0423349]
[1755204931139,0.02421,118060.0,118050.0,0.1480395]
[1755204931339,0.03403,118060.0,118050.0,1.8166947]
[1755204931539,0.06508,118060.0,118050.0,1.8166947]
[1755204931837,0.06508,118060.0,118050.0,1.8490947]
[1755204932542,0.07208,118060.0,118050.0,1.8500947]
[1755204932743,0.13227,118060.0,118050.0,1.8500947]
[1755204932942,0.13227,118060.0,118050.0,1.85861405]
[1755204933241,0.13127,118060.0,118050.0,1.85861405]
[1755204933641,0.12827,118060.0,118050.0,1.85861405]
[1755204933940,0.2149223,118060.0,118050.0,0.65527295]
[1755204934145,0.2149223,118060.0,118050.0,1.46281295]
[1755204934353,0.2149223,118060.0,118050.0,1.10201295]
[1755204934850,0.2149223,118060.0,118050.0,0.12657395]
[1755204935145,0.2149223,118060.0,118050.0,0.93269395]
[1755204935942,0.2149223,118060.0,118050.0,0.95498395]
[1755204937245,0.5740734,118060.0,118050.0,0.0856546]
[1755204937451,0.5740734,118060.0,118050.0,0.80684]
[1755204937646,0.9348734,118060.0,118050.0,0.9238996]
[1755204937950,0.59439987,118060.0,118050.0,0.9548796]
[1755204938848,0.59439987,118060.0,118050.0,0.9224796]
[1755204939054,0.59439987,118060.0,118050.0,0.9137896]
[1755204939249,0.59439987,118060.0,118050.0,0.9548796]
[1755204941953,0.59439987,118060.0,118050.0,0.80648]
[1755204942158,0.59439987,118060.0,118050.0,0.0856595]
[1755204942359,0.59439987,118060.0,118050.0,0.8910995]
[1755204943065,0.95355097,118060.0,118050.0,0.9234995]
[1755204943248,0.95355097,118060.0,118050.0,0.9457895]
[1755204943958,0.95355097,118060.0,118050.0,0.9544795]
[1755204944260,0.59439987,118060.0,118050.0,0.9544795]
[1755204945859,0.95355097,118060.0,118050.0,0.9544795]
[1755204947162,0.59275097,118060.0,118050.0,0.9544795]
[1755204947462,0.95355097,118060.0,118050.0,0.9544795]
[1755204947657,0.59275097,118060.0,118050.0,0.9544795]
[1755204947864,0.95355097,118060.0,118050.0,0.9544795]
[1755204948264,0.59439987,118060.0,118050.0,0.9544795]
[1755204948561,0.59275097,118060.0,118050.0,0.9544795]
[1755204949157,0.23359987,118060.0,118050.0,1.3207095]
[1755204949660,0.23359987,118060.0,118050.0,1.3152795]
[1755204949855,0.59439987,118060.0,118050.0,0.86982]
[1755204950056,0.5757223,118060.0,118050.0,0.86982]
[1755204950368,0.5757223,118060.0,118050.0,0.86938]
[1755204950369,0.9535838,118060.0,118050.0,0.86938]
[1755204950868,0.9535838,118060.0,118050.0,0.806]
[1755204951062,0.9535838,118060.0,118050.0,0.8906595]
[1755204951454,0.9535838,118060.0,118050.0,0.9453495]
[1755204951663,0.9535838,118060.0,118050.0,0.9540395]
[1755204952768,0.9535838,118060.0,118050.0,0.9540388]
[1755204954067,0.5944327,118060.0,118050.0,0.9540388]
[1755204954360,0.9535838,118060.0,118050.0,0.9540388]
[1755204954560,0.5927838,118060.0,118050.0,0.9540388]
[1755204954765,0.9535838,118060.0,118050.0,0.9540388]
[1755204955661,0.5927838,118060.0,118050.0,0.9540388]
[1755204955868,0.5927838,118060.0,118050.0,0.9594688]
[1755204955869,0.1620227,118060.0,118050.0,0.9594688]
[1755204956165,0.1759627,118060.0,118050.0,0.9594688]
[1755204956468,0.2309227,118060.0,118050.0,0.9540388]
[1755204957068,0.2309227,118060.0,118050.0,0.9594688]
[1755204957671,0.2309227,118060.0,118050.0,0.9540388]
[1755204960573,0.2309227,118060.0,118050.0,0.9594688]
[1755204961368,0.2309227,118060.0,118050.0,0.87481]
[1755204961575,0.2309227,118060.0,118050.0,0.9540337]
[1755204962272,0.2309227,118060.0,118050.0,0.9594637]
[1755204962473,0.2309227,118060.0,118050.0,1.3202637]
[1755204965581,0.2309227,118060.0,118050.0,0.9594637]
[1755204966968,0.2309227,118060.0,118050.0,0.87481]
[1755204967171,0.1759627,118060.0,118050.0,0.9594636]
[1755204967476,0.2309227,118060.0,118050.0,0.9594636]
[1755204973083,0.1988127,118060.0,118050.0,0.9594636]
[1755204973281,0.2309227,118060.0,118050.0,0.9594636]
[1755204973579,0.0267104,118060.0,118050.0,1.3186147]
[1755204973881,0.1113569,118060.0,118050.0,1.69682272]
[1755204974083,0.1343969,118060.0,118050.0,1.33767162]
[1755204974284,0.1954569,118060.0,118050.0,1.33767162]
[1755204974474,0.2275669,118060.0,118050.0,0.97687162]
[1755204975279,0.1726069,118060.0,118050.0,0.97687162]
[1755204977577,0.1538965,118060.0,118050.0,0.97687162]
[1755204977776,0.17263695,118060.0,118050.0,0.97687162]
[1755204979181,0.17263695,118060.0,118050.0,1.33767162]
[1755204980271,0.17263695,118060.0,118050.0,1.28298162]
[1755204980478,0.17263695,118060.0,118050.0,1.34020162]
[1755204983983,0.22759695,118060.0,118050.0,1.31214182]
[1755204984192,0.58751805,118060.0,118050.0,0.88640802]
[1755204985588,0.58751805,118060.0,118050.0,0.97106162]
[1755204987481,0.58751805,118060.0,118050.0,0.9536536]
[1755204992786,0.22836695,118060.0,118050.0,0.9590836]
[1755204993084,0.20614695,118060.0,118050.0,0.9590836]
[1755204993289,0.22726695,118060.0,118050.0,0.9590836]
[1755204993492,0.22726695,118060.0,118050.0,0.9536536]
[1755204993888,0.22726695,118060.0,118050.0,0.9190636]
[1755204994093,0.22726695,118060.0,118050.0,0.86623]
[1755204994283,0.22726695,118060.0,118050.0,0.942194]
[1755204994484,0.58641805,118060.0,118050.0,0.942194]
[1755204994787,0.1314711,118040.0,118030.0,0.42355]
[1755204995088,0.57929265,118040.0,118030.0,0.9491782]
[1755204995480,0.22014155,118040.0,118030.0,0.9546082]
[1755204995681,0.05173045,118040.0,118030.0,0.9546082]
[1755204995889,0.04182045,118040.0,118030.0,0.9546082]
[1755204996279,0.04182045,118040.0,118030.0,1.3154082]
[1755204996482,0.12648145,118040.0,118030.0,1.3154082]
[1755204996683,0.04182045,118040.0,118030.0,1.3154082]
[1755204997391,0.04282045,118040.0,118030.0,1.3154082]
[1755204997691,0.12748135,118040.0,118030.0,1.32377821]
[1755204997991,0.01974045,118040.0,118030.0,1.32377821]
[1755204998188,0.04282045,118040.0,118030.0,1.32377821]
[1755204998586,0.12748135,118040.0,118030.0,1.3154082]
[1755204998786,0.12748135,118040.0,118030.0,0.9546082]
[1755204998787,0.22114135,118040.0,118030.0,0.9546082]
[1755204999389,0.22114135,118040.0,118030.0,0.9491782]
[1755204999892,0.22114135,118040.0,118030.0,0.9546082]
[1755205001793,0.04282045,118040.0,118030.0,1.3154082]
[1755205001991,0.12748155,118040.0,118030.0,0.9546082]
[1755205002189,0.18826155,118040.0,118030.0,0.9491782]
[1755205002390,0.22114155,118040.0,118030.0,0.9491782]
[1755205002594,0.22114155,118040.0,118030.0,0.86451]
[1755205002895,0.5615522,118040.0,118030.0,0.9491787]
[1755205003096,0.5615522,118040.0,118030.0,0.86451]
[1755205003283,0.5802238,118040.0,118030.0,0.86451]
[1755205003482,0.5802238,118040.0,118030.0,0.86407]
[1755205003690,0.5802238,118040.0,118030.0,0.9487388]
[1755205004194,0.2210727,118040.0,118030.0,0.9487388]
[1755205007099,0.2210727,118040.0,118030.0,0.9541688]
[1755205009894,0.2024011,118040.0,118030.0,0.9541688]
[1755205010196,0.22107021,118040.0,118030.0,0.9541688]
[1755205010391,0.22107077,118040.0,118030.0,0.9541688]
[1755205010695,0.001,118040.0,118030.0,1.6741199]
[1755205012990,0.02408,118040.0,118030.0,1.6741199]
[1755205013702,0.001,118040.0,118030.0,1.6741199]
[1755205015697,0.02452,118040.0,118030.0,1.3149688]
[1755205018304,0.001,118040.0,118030.0,1.3149688]
[1755205019105,0.02452,118040.0,118030.0,1.3149688]
[1755205019603,0.04799,118040.0,118030.0,1.3149688]
[1755205019805,0.06668648,118040.0,118030.0,1.3149688]
[1755205019998,0.04799,118040.0,118030.0,1.3149688]
[1755205020593,0.61537228,118040.0,118030.0,1.89632108]
[1755205021305,0.6340704,118040.0,118030.0,1.89632108]
[1755205021807,0.6480404,118040.0,118030.0,1.89632108]
[1755205022602,0.6480404,118040.0,118030.0,1.91326373]
[1755205023896,0.6876304,118040.0,118030.0,1.54703373]
[1755205024105,0.7208704,118040.0,118030.0,0.96568145]
[1755205025306,0.8055328,118040.0,118030.0,0.96440225]
[1755205025610,0.8055327,118040.0,118030.0,0.96440225]
[1755205029809,0.7208704,118040.0,118030.0,0.96440225]
[1755205030300,0.8055327,118040.0,118030.0,0.96440225]
[1755205031706,0.80555173,118040.0,118030.0,0.96440225]
[1755205033202,0.80555173,118040.0,118030.0,0.9474596]
[1755205036208,0.72088943,118040.0,118030.0,0.9474596]
[1755205036713,0.80555223,118040.0,118030.0,0.9474596]
[1755205037216,1.16635223,118040.0,118030.0,0.9474596]
[1755205037708,0.80555223,118040.0,118030.0,0.9474596]
[1755205038218,1.16635223,118040.0,118030.0,0.9474596]